fUST/lending_fUST_20250520
["ID","MTS","AMOUNT","RATE_DAILY","PERIOD"]
[361717739,1747721452080,-430.0,0.00016438,2]
[361717740,1747721452092,-430.0,0.00016438,2]
[361717741,1747721452103,-265.74534492,0.00016438,2]
[361717742,1747721452114,-401.11142967,0.00016438,2]
[361717743,1747721452125,-400.0,0.00016438,2]
[361717744,1747721452135,-430.0,0.00016438,2]
[361717745,1747721452145,-400.0,0.00016438,2]
[361717746,1747721452155,-400.0,0.00016438,2]
[361717747,1747721452166,-430.0,0.00016438,2]
[361717748,1747721452176,-430.0,0.00016438,2]
[361717749,1747721452185,-430.0,0.00016438,2]
[361717750,1747721452195,-400.0,0.00016438,2]
[361717751,1747721452204,-799.618206,0.00016438,2]
[361717752,1747721452214,-799.618206,0.00016438,2]
[361717753,1747721452227,-799.618206,0.00016438,2]
[361717754,1747721452237,-799.618206,0.00016438,2]
[361717755,1747721452247,-799.618206,0.00016438,2]
[361717756,1747721452258,-430.0,0.00016438,2]
[361717757,1747721452269,-799.618206,0.00016438,2]
[361717758,1747721452279,-799.618206,0.00016438,2]
[361717759,1747721452288,-799.618206,0.00016438,2]
[361717760,1747721452298,-430.0,0.00016438,2]
[361717761,1747721452308,-799.618206,0.00016438,2]
[361717762,1747721452318,-799.618206,0.00016438,2]
[361717763,1747721452328,-799.618206,0.00016438,2]
[361717764,1747721452338,-799.618206,0.00016438,2]
[361717765,1747721452349,-799.618206,0.00016438,2]
[361717766,1747721452359,-799.618206,0.00016438,2]
[361717767,1747721452370,-799.618206,0.00016438,2]
[361717768,1747721452380,-400.0,0.00016438,2]
[361717769,1747721452390,-151.0,0.00016438,2]
[361717770,1747721452399,-153.385855,0.00016438,2]
[361717771,1747721452409,-799.61821174,0.00016438,2]
[361717772,1747721452419,-430.0,0.00016438,2]
[361717773,1747721452429,-430.0,0.00016438,2]
[361717774,1747721452438,-404.06432131,0.00016438,2]
[361717775,1747721452448,-430.0,0.00016438,2]
[361717776,1747721452458,-417.84315688,0.00016438,2]
[361717777,1747721452688,-12.15684312,0.00016438,2]
[361717778,1747721452699,-430.0,0.00016438,2]
[361717779,1747721452709,-1219.69,0.00016438,2]
[361717780,1747721452719,-488.83997543,0.00016438,2]
[361717781,1747721452729,-450.0,0.00016438,2]
[361717782,1747721452740,-430.0,0.00016438,2]
[361717783,1747721452750,-400.0,0.00016438,2]
[361717784,1747721452761,-430.0,0.00016438,2]
[361717785,1747721452771,-450.0,0.00016438,2]
[361717786,1747721452781,-430.0,0.00016438,2]
[361717787,1747721452791,-469.77,0.00016438,2]
[361717788,1747721452801,-450.0,0.00016438,2]
[361717789,1747721452812,-430.0,0.00016438,2]
[361717790,1747721452822,-430.0,0.00016438,2]
[361717791,1747721452831,-450.0,0.00016438,2]
[361717792,1747721452842,-568.06,0.00016438,2]
[361717793,1747721452853,-430.0,0.00016438,2]
[361717794,1747721452863,-443.47,0.00016438,2]
[361717795,1747721452873,-1834.6,0.00016438,2]
[361717796,1747721452882,-430.0,0.00016438,2]
[361717797,1747721452892,-430.0,0.00016438,2]
[361717798,1747721452903,-445.34,0.00016438,2]
[361717799,1747721452912,-430.0,0.00016438,2]
[361717800,1747721452922,-430.0,0.00016438,2]
[361717801,1747721452932,-822.33,0.00016438,2]
[361717802,1747721452944,-430.0,0.00016438,2]
[361717803,1747721452955,-2248.92215691,0.00016438,2]
[361717804,1747721468214,417.066,0.00027397,120]
[361717805,1747721599166,1700.0,0.00027397,120]
[361717806,1747721604283,232.0,0.00024935,120]
[361717807,1747721715809,354.655604,0.00027397,120]
[361717808,1747721724066,700.0,0.00027397,120]
[361717809,1747721724321,700.0,0.00027397,120]
[361717810,1747721724570,700.0,0.00027397,120]
[361717811,1747721724815,700.0,0.00027397,120]
[361717812,1747721725076,700.0,0.00027397,120]
[361717813,1747721725393,700.0,0.00027397,120]
[361717814,1747721725699,700.0,0.00027397,120]
[361717815,1747721725946,700.0,0.00027397,120]
[361717816,1747721726218,700.0,0.00027397,120]
[361717817,1747721726454,700.0,0.00027397,120]
[361717818,1747721726698,700.0,0.00027397,120]
[361717819,1747721726972,700.0,0.00027397,120]
[361717820,1747721727239,700.0,0.00027397,120]
[361717821,1747721727510,700.0,0.00027397,120]
[361717822,1747721727757,700.0,0.00027397,120]
[361717823,1747721728017,270.66262592,0.00027397,120]
[361717824,1747721964409,1038.0,0.00024908,30]
[361717825,1747721965352,1038.0,0.00024908,30]
[361717826,1747721965725,1038.0,0.00024908,30]
[361717827,1747721966095,1038.0,0.00024908,30]
[361717828,1747721966485,1038.0,0.00024908,30]
[361717829,1747721966880,1038.0,0.00024908,30]
[361717830,1747721967249,1038.0,0.00024908,30]
[361717831,1747721967688,1038.0,0.00024908,30]
[361717832,1747721968023,1038.0,0.00024908,30]
[361717833,1747721968410,1038.0,0.00024908,30]
[361717834,1747722077683,2152.74434259,0.00024909,30]
[361717835,1747722281077,200.0,0.00027397,120]
[361717839,1747722414596,-152.0,0.00013292,2]
[361717840,1747722445147,-158.26815888,0.00013292,2]
[361717841,1747722575739,155.15615681,7.5e-07,2]
[361717842,1747722576030,155.15615681,7.5e-07,2]
[361717938,1747722646619,-5000.0,0.00013159,2]
[361717939,1747722646630,-248.833054,0.00013699,2]
[361717940,1747722646641,-420.961258,0.00015271,2]
[361717941,1747722646651,-909.8573128,0.00015285,2]
[361717942,1747722646662,-151.0,0.00015591,2]
[361717943,1747722646862,-207.4,0.00015591,2]
[361717944,1747722646873,-1000.0,0.00016,2]
[361717945,1747722646884,-500.0,0.00016006,2]
[361717946,1747722646894,-200.0,0.00016006,2]
[361717947,1747722646906,-158.368867,0.00016107,2]
[361717948,1747722646916,-300.0,0.00016107,2]
[361717949,1747722646927,-151.0,0.00016108,2]
[361717950,1747722646937,-151.0,0.00016108,2]
[361717951,1747722646947,-151.0,0.00016108,2]
[361717952,1747722646958,-151.0,0.00016108,2]
[361717953,1747722646968,-2370.5262335,0.00016109,2]
[361717954,1747722646978,-250.0,0.00016197,2]
[361717955,1747722646988,-153.0,0.000162,2]
[361717956,1747722646998,-306.0,0.000162,2]
[361717957,1747722647008,-153.0,0.000162,2]
[361717958,1747722647018,-96.22116712,0.000162,2]
[361717959,1747722647030,-56.77883288,0.000162,2]
[361717960,1747722647042,-153.0,0.000163,2]
[361717961,1747722647051,-153.0,0.000163,2]
[361717962,1747722647063,-153.0,0.000163,2]
[361717963,1747722647072,-153.0,0.000163,2]
[361717964,1747722647082,-153.0,0.000163,2]
[361717965,1747722647092,-153.0,0.000163,2]
[361717966,1747722647101,-788.7183902,0.00016338,2]
[361717967,1747722647111,-500.0,0.00016437,2]
[361717968,1747722647121,-487.35979198,0.00016437,2]
[361717969,1747722647131,-500.0,0.00016437,2]
[361717970,1747722647142,-500.0,0.00016437,2]
[361717971,1747722647152,-500.0,0.00016437,2]
[361717972,1747722647162,-207.28528305,0.00016437,2]
[361717973,1747722647172,-500.0,0.00016437,2]
[361717974,1747722647183,-188.93469548,0.00016437,2]
[361717975,1747722647192,-500.0,0.00016437,2]
[361717976,1747722647203,-500.0,0.00016437,2]
[361717977,1747722647212,-500.0,0.00016437,2]
[361717978,1747722647222,-500.0,0.00016437,2]
[361717979,1747722647231,-500.0,0.00016437,2]
[361717980,1747722647240,-500.0,0.00016437,2]
[361717981,1747722647249,-500.0,0.00016437,2]
[361717982,1747722647259,-500.0,0.00016437,2]
[361717983,1747722647269,-500.0,0.00016437,2]
[361717984,1747722647279,-500.0,0.00016437,2]
[361717985,1747722647288,-414.92300641,0.00016437,2]
[361717986,1747722647300,-97.97095056,0.00016437,2]
[361717987,1747722647311,-500.0,0.00016437,2]
[361717988,1747722647320,-500.0,0.00016437,2]
[361717989,1747722647331,-500.0,0.00016437,2]
[361717990,1747722647340,-500.0,0.00016437,2]
[361717991,1747722647350,-500.0,0.00016437,2]
[361717992,1747722647359,-500.0,0.00016437,2]
[361717993,1747722647369,-500.0,0.00016437,2]
[361717994,1747722647379,-500.0,0.00016437,2]
[361717995,1747722647390,-500.0,0.00016437,2]
[361717996,1747722647400,-500.0,0.00016437,2]
[361717997,1747722647410,-500.0,0.00016437,2]
[361717998,1747722647419,-500.0,0.00016437,2]
[361717999,1747722647429,-500.0,0.00016437,2]
[361718000,1747722647439,-171.71452523,0.00016437,2]
[361718001,1747722647450,-500.0,0.00016437,2]
[361718002,1747722647460,-500.0,0.00016437,2]
[361718003,1747722647470,-500.0,0.00016437,2]
[361718004,1747722647480,-500.0,0.00016437,2]
[361718005,1747722647491,-500.0,0.00016437,2]
[361718006,1747722647502,-500.0,0.00016437,2]
[361718007,1747722647513,-500.0,0.00016437,2]
[361718008,1747722647523,-299.90151629,0.00016437,2]
[361718009,1747722729504,174.0,0.00027397,120]
[361718012,1747722840747,153.0,0.00013059,2]
[361718013,1747722901108,-7474.0,0.00013,2]
[361718014,1747722916332,265.991703,0.00027397,120]
[361718042,1747723593300,-379.186882,0.00012474,2]
[361718043,1747723595287,-214.23070218,0.00012474,2]
[361718044,1747723598113,-407.41082057,0.00012474,2]
[361718045,1747723600206,-213.40229743,0.00012474,2]
[361718049,1747723787856,2546.9576856,0.00024912,35]
[361718101,1747723831854,-5000.0,0.00012349,2]
[361718103,1747723831864,-1725.0,0.000126,2]
[361718105,1747723831875,-164.94856173,0.00013059,2]
[361718106,1747723831884,-251.79706,0.00013699,2]
[361718108,1747723831895,-724.786731,0.00014038,2]
[361718110,1747723831905,-1200.0,0.00014162,2]
[361718112,1747723831915,-1247.7669667,0.00014163,2]
[361718113,1747723831926,-420.961258,0.00014561,2]
[361718115,1747723831942,-300.0,0.0001467,2]
[361718116,1747723831953,-300.0,0.00014671,2]
[361718118,1747723831962,-300.0,0.00014671,2]
[361718120,1747723831972,-300.0,0.00014671,2]
[361718122,1747723831982,-300.0,0.00014672,2]
[361718124,1747723831992,-10131.3361469,0.00015449,2]
[361718126,1747723832001,-323.58398378,0.000155,2]
[361718128,1747723832012,-1680.0,0.00015578,2]
[361718130,1747723832022,-6175.5865897,0.00015591,2]
[361718131,1747723832031,-151.0,0.00015591,2]
[361718133,1747723832040,-207.4,0.00015591,2]
[361718135,1747723832050,-2695.38189623,0.000156,2]
[361718137,1747723832059,-2077.49544689,0.000156,2]
[361718190,1747723837743,-300.0,0.00014162,2]
[361718191,1747723837753,-617.88644924,0.000156,2]
[361718192,1747723837763,-2695.38189613,0.000156,2]
[361718193,1747723837774,-2695.38189613,0.000156,2]
[361718194,1747723837785,-2695.38189613,0.000156,2]
[361718195,1747723837797,-153.0,0.00015678,2]
[361718196,1747723837807,-153.0,0.00015678,2]
[361718197,1747723837816,-153.0,0.00015678,2]
[361718198,1747723837826,-153.0,0.00015678,2]
[361718199,1747723837836,-541.67528633,0.00015796,3]
[361718200,1747723837845,-20848.98135078,0.00015796,2]
[361718201,1747723837855,-2695.38189613,0.00015797,2]
[361718202,1747723837864,-153.0,0.00015878,2]
[361718203,1747723837874,-153.0,0.00015945,2]
[361718204,1747723837884,-310.0591789,0.00015945,2]
[361718205,1747723837894,-159.9212359,0.00015978,2]
[361718206,1747723837904,-153.0,0.00015978,2]
[361718207,1747723837913,-153.0,0.00015978,2]
[361718208,1747723837924,-420.0,0.00016062,2]
[361718209,1747723837939,-2370.5262335,0.00016109,2]
[361718210,1747723837949,-2695.38189613,0.00016176,2]
[361718211,1747723837958,-153.0,0.00016178,2]
[361718212,1747723837968,-630.97471216,0.00016338,2]
[361718213,1747723837978,-973.29315564,0.00016429,2]
[361718214,1747723837988,-500.0,0.00016437,2]
[361718215,1747723837997,-500.0,0.00016437,2]
[361718216,1747723838006,-500.0,0.00016437,2]
[361718217,1747723838016,-500.0,0.00016437,2]
[361718218,1747723838026,-177.74057318,0.00016437,2]
[361718219,1747723838035,-500.0,0.00016437,2]
[361718220,1747723838046,-153.14983826,0.00016437,2]
[361718221,1747723838057,-500.0,0.00016437,2]
[361718222,1747723838066,-500.0,0.00016437,2]
[361718223,1747723838076,-160.0,0.00016437,2]
[361718224,1747723838085,-151.0,0.00016438,2]
[361718225,1747723838095,-151.0,0.00016438,2]
[361718226,1747723838105,-151.0,0.00016438,2]
[361718227,1747723838114,-151.0,0.00016438,2]
[361718228,1747723838123,-151.0,0.00016438,2]
[361718229,1747723838142,-151.0,0.00016438,2]
[361718230,1747723838154,-151.0,0.00016438,2]
[361718231,1747723838164,-151.0,0.00016438,2]
[361718232,1747723838174,-157.176,0.00016438,2]
[361718233,1747723838185,-151.0,0.00016438,2]
[361718234,1747723838195,-151.0,0.00016438,2]
[361718235,1747723838206,-151.0,0.00016438,2]
[361718236,1747723838216,-173.398846,0.00016438,2]
[361718237,1747723838225,-154.031493,0.00016438,2]
[361718238,1747723838235,-500.0,0.00016438,2]
[361718239,1747723838245,-500.0,0.00016438,2]
[361718240,1747723838255,-500.0,0.00016438,2]
[361718241,1747723838266,-500.0,0.00016438,2]
[361718242,1747723838276,-500.0,0.00016438,2]
[361718243,1747723838286,-277.83939173,0.00016438,2]
[361718244,1747723838295,-500.0,0.00016438,2]
[361718245,1747723838305,-500.0,0.00016438,2]
[361718246,1747723838314,-500.0,0.00016438,2]
[361718247,1747723838324,-151.0,0.00016438,2]
[361718248,1747723838334,-151.0,0.00016438,2]
[361718249,1747723838344,-151.0,0.00016438,2]
[361718250,1747723838354,-151.0,0.00016438,2]
[361718251,1747723838363,-151.0,0.00016438,2]
[361718252,1747723838374,-151.0,0.00016438,2]
[361718253,1747723838383,-268.438762,0.00016438,2]
[361718254,1747723838393,-545.532643,0.00016438,2]
[361718255,1747723838403,-545.532643,0.00016438,2]
[361718256,1747723838412,-545.532643,0.00016438,2]
[361718257,1747723838422,-545.532643,0.00016438,2]
[361718258,1747723838432,-151.0,0.00016438,2]
[361718259,1747723838442,-151.0,0.00016438,2]
[361718260,1747723838451,-151.0,0.00016438,2]
[361718261,1747723838461,-151.0,0.00016438,2]
[361718262,1747723838470,-151.0,0.00016438,2]
[361718263,1747723838479,-450.0,0.00016438,2]
[361718264,1747723838489,-430.0,0.00016438,2]
[361718265,1747723838499,-350.0,0.00016438,2]
[361718266,1747723838508,-264.20458553,0.00016438,2]
[361718267,1747723838518,-470.0,0.00016438,2]
[361718268,1747723838527,-350.0,0.00016438,2]
[361718269,1747723838537,-350.0,0.00016438,2]
[361718270,1747723838547,-300.0,0.00016438,2]
[361718271,1747723838556,-350.0,0.00016438,2]
[361718272,1747723838566,-430.0,0.00016438,2]
[361718273,1747723838575,-242.5655464,0.00016438,2]
[361718274,1747723838585,-430.0,0.00016438,2]
[361718275,1747723838594,-450.0,0.00016438,2]
[361718276,1747723838604,-450.0,0.00016438,2]
[361718277,1747723838613,-430.0,0.00016438,2]
[361718278,1747723838623,-450.0,0.00016438,2]
[361718279,1747723838632,-430.0,0.00016438,2]
[361718280,1747723838642,-162.238917,0.00016438,2]
[361718281,1747723838651,-162.238917,0.00016438,2]
[361718282,1747723838661,-162.238917,0.00016438,2]
[361718283,1747723838670,-162.238917,0.00016438,2]
[361718284,1747723838680,-162.238917,0.00016438,2]
[361718285,1747723838689,-162.238917,0.00016438,2]
[361718286,1747723838699,-450.0,0.00016438,2]
[361718287,1747723838708,-450.0,0.00016438,2]
[361718288,1747723838717,-430.0,0.00016438,2]
[361718289,1747723838727,-411.73762338,0.00016438,2]
[361718290,1747723838736,-370.0,0.00016438,2]
[361718291,1747723838746,-240.45742869,0.00016438,2]
[361718292,1747723838755,-430.0,0.00016438,2]
[361718293,1747723838764,-302.65781893,0.00016438,2]
[361718294,1747723838774,-370.0,0.00016438,2]
[361718295,1747723838783,-158.368867,0.00016438,2]
[361718296,1747723838793,-430.0,0.00016438,2]
[361718297,1747723838804,-430.0,0.00016438,2]
[361718298,1747723838813,-671.11,0.00016438,2]
[361718299,1747723838822,-505.32046801,0.00016438,2]
[361718300,1747723838832,-240.42934723,0.00016438,2]
[361718301,1747723838842,-402.00983343,0.00016438,2]
[361718302,1747723838852,-450.0,0.00016438,2]
[361718303,1747723838862,-400.0,0.00016438,2]
[361718304,1747723838871,-552.69,0.00016438,2]
[361718305,1747723838881,-417.62098106,0.00016438,2]
[361718306,1747723838891,-522.33,0.00016438,2]
[361718307,1747723838900,-351.27367716,0.00016438,2]
[361718308,1747723838910,-257.99777585,0.00016438,2]
[361718309,1747723838920,-400.90886693,0.00016438,2]
[361718310,1747723838932,-430.0,0.00016438,2]
[361718311,1747723838942,-402.56780311,0.00016438,2]
[361718312,1747723838951,-400.0,0.00016438,2]
[361718313,1747723838961,-400.0,0.00016438,2]
[361718314,1747723838971,-430.0,0.00016438,2]
[361718315,1747723838982,-430.0,0.00016438,2]
[361718316,1747723838992,-403.95451694,0.00016438,2]
[361718317,1747723839002,-430.0,0.00016438,2]
[361718318,1747723839013,-402.03573371,0.00016438,2]
[361718319,1747723839024,-430.0,0.00016438,2]
[361718320,1747723839033,-450.0,0.00016438,2]
[361718321,1747723839044,-400.0,0.00016438,2]
[361718322,1747723839055,-430.0,0.00016438,2]
[361718323,1747723839064,-430.0,0.00016438,2]
[361718324,1747723839075,-430.0,0.00016438,2]
[361718325,1747723839084,-151.0,0.00016438,2]
[361718326,1747723839095,-404.40644131,0.00016438,2]
[361718327,1747723839105,-778.55,0.00016438,2]
[361718328,1747723839115,-430.0,0.00016438,2]
[361718329,1747723839126,-430.0,0.00016438,2]
[361718330,1747723839136,-276.84650057,0.00016438,2]
[361718331,1747723839146,-405.54637909,0.00016438,2]
[361718332,1747723839156,-400.0,0.00016438,2]
[361718333,1747723839165,-296.73408255,0.00016438,2]
[361718334,1747723839176,-430.0,0.00016438,2]
[361718335,1747723839186,-430.0,0.00016438,2]
[361718336,1747723839200,-548.05350165,0.00016438,2]
[361718337,1747723839211,-430.0,0.00016438,2]
[361718338,1747723839220,-400.0,0.00016438,2]
[361718339,1747723839231,-280.41979953,0.00016438,2]
[361718340,1747723839240,-331.83859235,0.00016438,2]
[361718341,1747723839250,-430.0,0.00016438,2]
[361718342,1747723839259,-400.0,0.00016438,2]
[361718343,1747723839269,-290.16080414,0.00016438,2]
[361718344,1747723839279,-368.04792361,0.00016438,2]
[361718345,1747723839289,-430.0,0.00016438,2]
[361718346,1747723839300,-430.0,0.00016438,2]
[361718347,1747723839310,-430.0,0.00016438,2]
[361718348,1747723839319,-416.82741354,0.00016438,2]
[361718349,1747723839331,-400.0,0.00016438,2]
[361718351,1747723839343,-400.14908512,0.00016438,2]
[361718352,1747723839352,-400.0,0.00016438,2]
[361718354,1747723839364,-400.0,0.00016438,2]
[361718355,1747723839374,-469.10966085,0.00016438,2]
[361718356,1747723839384,-400.0,0.00016438,2]
[361718357,1747723839395,-188.0,0.00016438,2]
[361718358,1747723839405,-403.11097688,0.00016438,2]
[361718359,1747723839414,-560.35,0.00016438,2]
[361718360,1747723839424,-430.0,0.00016438,2]
[361718361,1747723839433,-430.0,0.00016438,2]
[361718362,1747723839443,-430.0,0.00016438,2]
[361718363,1747723839453,-453.98,0.00016438,2]
[361718364,1747723839463,-523.69,0.00016438,2]
[361718365,1747723839473,-430.0,0.00016438,2]
[361718366,1747723839482,-686.53,0.00016438,2]
[361718367,1747723839492,-500.0,0.00016438,2]
[361718368,1747723839502,-500.0,0.00016438,2]
[361718369,1747723839511,-500.0,0.00016438,2]
[361718370,1747723839521,-500.0,0.00016438,2]
[361718371,1747723839531,-500.0,0.00016438,2]
[361718372,1747723839540,-500.0,0.00016438,2]
[361718373,1747723839550,-500.0,0.00016438,2]
[361718374,1747723839559,-500.0,0.00016438,2]
[361718375,1747723839569,-500.0,0.00016438,2]
[361718376,1747723839583,-500.0,0.00016438,2]
[361718377,1747723839592,-191.71347998,0.00016438,2]
[361718378,1747723839603,-370.0,0.00016438,2]
[361718379,1747723839614,-430.0,0.00016438,2]
[361718380,1747723839625,-630.62,0.00016438,2]
[361718381,1747723839634,-430.0,0.00016438,2]
[361718382,1747723839645,-484.84,0.00016438,2]
[361718383,1747723839655,-430.0,0.00016438,2]
[361718384,1747723839664,-430.0,0.00016438,2]
[361718385,1747723839674,-683.64,0.00016438,2]
[361718386,1747723839683,-430.0,0.00016438,2]
[361718387,1747723839692,-430.0,0.00016438,2]
[361718388,1747723839702,-430.0,0.00016438,2]
[361718389,1747723839711,-430.0,0.00016438,2]
[361718390,1747723839721,-465.83,0.00016438,2]
[361718391,1747723839732,-400.0,0.00016438,2]
[361718392,1747723839744,-430.0,0.00016438,2]
[361718393,1747723839754,-430.0,0.00016438,2]
[361718394,1747723839765,-430.0,0.00016438,2]
[361718395,1747723839776,-569.73890092,0.00016438,2]
[361718396,1747723839786,-1355.93,0.00016438,2]
[361718397,1747723839797,-679.09,0.00016438,2]
[361718398,1747723839807,-1257.94,0.00016438,2]
[361718399,1747723839820,-430.0,0.00016438,2]
[361718400,1747723839832,-400.0,0.00016438,2]
[361718401,1747723839841,-430.0,0.00016438,2]
[361718402,1747723839853,-430.0,0.00016438,2]
[361718403,1747723839864,-430.0,0.00016438,2]
[361718405,1747723839876,-430.0,0.00016438,2]
[361718406,1747723839886,-430.0,0.00016438,2]
[361718408,1747723839896,-430.0,0.00016438,2]
[361718409,1747723839906,-430.0,0.00016438,2]
[361718410,1747723839916,-430.0,0.00016438,2]
[361718411,1747723839925,-680.31,0.00016438,2]
[361718412,1747723839942,-1008.71,0.00016438,2]
[361718413,1747723839952,-430.0,0.00016438,2]
[361718414,1747723839962,-619.76,0.00016438,2]
[361718415,1747723839973,-438.81,0.00016438,2]
[361718416,1747723839983,-612.09,0.00016438,2]
[361718417,1747723839993,-430.0,0.00016438,2]
[361718418,1747723840004,-445.3,0.00016438,2]
[361718419,1747723840014,-151.0,0.00016438,2]
[361718421,1747723840023,-430.0,0.00016438,2]
[361718424,1747723840236,-151.0,0.00016438,2]
[361718425,1747723840247,-151.0,0.00016438,2]
[361718426,1747723840257,-430.0,0.00016438,2]
[361718427,1747723840267,-576.92,0.00016438,2]
[361718428,1747723840278,-151.0,0.00016438,2]
[361718429,1747723840288,-151.0,0.00016438,2]
[361718430,1747723840298,-514.34,0.00016438,2]
[361718431,1747723840307,-151.0,0.00016438,2]
[361718432,1747723840319,-804.3,0.00016438,2]
[361718433,1747723840329,-544.37916764,0.00016438,2]
[361718434,1747723840338,-506.14,0.00016438,2]
[361718435,1747723840347,-429.24339771,0.00016438,2]
[361718436,1747723840357,-450.0,0.00016438,2]
[361718437,1747723840367,-430.0,0.00016438,2]
[361718438,1747723840376,-401.68518488,0.00016438,2]
[361718439,1747723840385,-430.0,0.00016438,2]
[361718440,1747723840396,-430.0,0.00016438,2]
[361718441,1747723840405,-793.61,0.00016438,2]
[361718442,1747723840416,-430.0,0.00016438,2]
[361718443,1747723840428,-430.0,0.00016438,2]
[361718444,1747723840438,-430.0,0.00016438,2]
[361718445,1747723840448,-691.98,0.00016438,2]
[361718446,1747723840458,-430.0,0.00016438,2]
[361718447,1747723840469,-430.0,0.00016438,2]
[361718448,1747723840480,-430.0,0.00016438,2]
[361718449,1747723840490,-445.15,0.00016438,2]
[361718450,1747723840501,-430.0,0.00016438,2]
[361718451,1747723840511,-430.0,0.00016438,2]
[361718452,1747723840522,-482.21,0.00016438,2]
[361718453,1747723840533,-430.0,0.00016438,2]
[361718454,1747723840543,-430.0,0.00016438,2]
[361718455,1747723840552,-465.09,0.00016438,2]
[361718456,1747723840564,-430.0,0.00016438,2]
[361718457,1747723840575,-430.0,0.00016438,2]
[361718458,1747723840586,-430.0,0.00016438,2]
[361718459,1747723840597,-151.0,0.00016438,2]
[361718460,1747723840608,-430.0,0.00016438,2]
[361718461,1747723840618,-430.0,0.00016438,2]
[361718462,1747723840627,-295.1455784,0.00016438,2]
[361718463,1747723840637,-430.0,0.00016438,2]
[361718464,1747723840648,-430.0,0.00016438,2]
[361718465,1747723840658,-430.0,0.00016438,2]
[361718466,1747723840669,-430.0,0.00016438,2]
[361718467,1747723840681,-430.0,0.00016438,2]
[361718468,1747723840690,-430.0,0.00016438,2]
[361718469,1747723840701,-1168.87,0.00016438,2]
[361718470,1747723840711,-302.869616,0.00016438,2]
[361718471,1747723840720,-302.869616,0.00016438,2]
[361718472,1747723840730,-302.869616,0.00016438,2]
[361718473,1747723840739,-151.0,0.00016438,2]
[361718474,1747723840750,-151.0,0.00016438,2]
[361718475,1747723840759,-302.869616,0.00016438,2]
[361718476,1747723840770,-302.869616,0.00016438,2]
[361718477,1747723840780,-302.869616,0.00016438,2]
[361718478,1747723840790,-450.19,0.00016438,2]
[361718479,1747723840800,-544.4,0.00016438,2]
[361718480,1747723840810,-430.0,0.00016438,2]
[361718481,1747723840820,-430.0,0.00016438,2]
[361718482,1747723840830,-430.0,0.00016438,2]
[361718483,1747723840840,-430.0,0.00016438,2]
[361718484,1747723840850,-704.26,0.00016438,2]
[361718485,1747723840859,-400.0,0.00016438,2]
[361718486,1747723840869,-400.0,0.00016438,2]
[361718487,1747723840878,-521.49,0.00016438,2]
[361718488,1747723840888,-1063.65,0.00016438,2]
[361718489,1747723840898,-430.0,0.00016438,2]
[361718490,1747723840908,-532.06063339,0.00016438,2]
[361718491,1747723840917,-1628.78,0.00016438,2]
[361718492,1747723840928,-488.1799649,0.00016438,2]
[361718493,1747723840940,-258.06089305,0.00016438,2]
[361718494,1747723840950,-430.0,0.00016438,2]